fUSD/lending_fUSD_20251115
["ID","MTS","AMOUNT","RATE_DAILY","PERIOD"]
[394010751,1763178641512,-199.346137,0.00017168,2]
[394010752,1763178641521,-462.0,0.00017168,2]
[394010753,1763178641531,-150.0,0.00017168,2]
[394010754,1763178641541,-254.1126938,0.00017168,2]
[394010755,1763178641550,-500.0,0.00017168,2]
[394010756,1763178641560,-500.0,0.00017168,2]
[394010757,1763178641570,-500.0,0.00017168,2]
[394010758,1763178641579,-500.0,0.00017173,2]
[394010759,1763178641589,-500.0,0.00017173,2]
[394010760,1763178641598,-150.0,0.00017178,2]
[394010761,1763178641607,-150.0,0.00017178,2]
[394010762,1763178641616,-301.21,0.00017178,2]
[394010763,1763178641626,-301.6,0.00017178,2]
[394010764,1763178641635,-150.0,0.00017178,2]
[394010765,1763178641645,-300.58,0.00017178,2]
[394010766,1763178641654,-150.0,0.00017178,2]
[394010767,1763178641663,-416.5,0.00017178,2]
[394010768,1763178641672,-150.0,0.00017178,2]
[394010769,1763178641681,-150.0,0.00017178,2]
[394010770,1763178641691,-150.0,0.00017178,2]
[394010771,1763178641700,-150.0,0.00017178,2]
[394010772,1763178641709,-416.61,0.00017178,2]
[394010773,1763178641718,-150.0,0.00017178,2]
[394010774,1763178641727,-150.0,0.00017178,2]
[394010775,1763178641737,-150.0,0.00017178,2]
[394010776,1763178641746,-150.0,0.00017178,2]
[394010777,1763178641756,-150.0,0.00017178,2]
[394010778,1763178641767,-416.61,0.00017178,2]
[394010779,1763178641777,-150.0,0.00017178,2]
[394010780,1763178641786,-150.0,0.00017178,2]
[394010781,1763178641796,-416.61,0.00017178,2]
[394010782,1763178641805,-150.0,0.00017178,2]
[394010783,1763178641814,-150.0,0.00017178,2]
[394010784,1763178641823,-222.04,0.00017178,2]
[394010785,1763178641832,-150.0,0.00017178,2]
[394010786,1763178641842,-416.61,0.00017178,2]
[394010787,1763178641852,-150.0,0.00017178,2]
[394010788,1763178641861,-416.61,0.00017178,2]
[394010789,1763178641871,-150.0,0.00017178,2]
[394010790,1763178641880,-425.74,0.00017178,2]
[394010791,1763178641889,-700.0,0.000172,6]
[394010792,1763178641899,-4294.83167324,0.00017224,2]
[394010793,1763178641908,-150.0,0.00017229,2]
[394010794,1763178641917,-150.0,0.00017229,2]
[394010795,1763178641926,-150.45659999,0.00017229,2]
[394010796,1763178641935,-500.0,0.00017229,2]
[394010797,1763178641945,-150.0,0.00017229,2]
[394010798,1763178641955,-150.0,0.00017229,2]
[394010799,1763178641964,-500.0,0.00017229,2]
[394010800,1763178641974,-150.0,0.00017229,2]
[394010801,1763178641983,-150.0,0.00017229,2]
[394010802,1763178641993,-5634.20854295,0.00017229,2]
[394010803,1763178642003,-159.31,0.00017268,2]
[394010804,1763178642012,-300.0,0.000173,2]
[394010805,1763178642022,-699.91,0.000173,2]
[394010806,1763178642032,-1413.06,0.000173,2]
[394010807,1763178642041,-700.06,0.000173,2]
[394010808,1763178642050,-700.06,0.000173,2]
[394010809,1763178642059,-1000.0,0.000173,6]
[394010810,1763178642068,-588.18190316,0.00017305,2]
[394010811,1763178642077,-150.0,0.00017305,2]
[394010812,1763178642087,-150.0,0.00017305,2]
[394010813,1763178642097,-150.0,0.00017305,2]
[394010814,1763178642107,-500.0,0.00017305,2]
[394010815,1763178642116,-500.0,0.00017305,2]
[394010816,1763178642125,-500.0,0.00017305,2]
[394010817,1763178642135,-462.0,0.00017305,2]
[394010818,1763178642145,-150.0,0.00017305,2]
[394010819,1763178642154,-500.0,0.00017305,2]
[394010820,1763178642163,-500.0,0.00017305,2]
[394010821,1763178642173,-500.0,0.00017305,2]
[394010822,1763178642183,-500.0,0.0001731,2]
[394010823,1763178642192,-500.0,0.0001731,2]
[394010824,1763178642202,-735.35411794,0.00017321,2]
[394010825,1763178642211,-630.75143934,0.00017321,2]
[394010826,1763178642220,-215.58724508,0.00017321,2]
[394010827,1763178642229,-4294.83167324,0.00017337,2]
[394010828,1763178642238,-5634.20854295,0.00017341,2]
[394010829,1763178642247,-168.0,0.00017351,2]
[394010830,1763178642257,-290.73777035,0.00017366,2]
[394010831,1763178642266,-150.0,0.00017366,2]
[394010832,1763178642275,-500.0,0.00017366,2]
[394010833,1763178642284,-150.0,0.00017366,2]
[394010834,1763178642293,-152.65847899,0.00017366,2]
[394010835,1763178642302,-500.0,0.00017366,2]
[394010836,1763178642311,-150.0,0.00017366,2]
[394010837,1763178642320,-203.05300063,0.00017366,2]
[394010838,1763178642329,-150.0,0.00017378,2]
[394010839,1763178642338,-150.0,0.000174,2]
[394010840,1763178642347,-150.0,0.000174,2]
[394010841,1763178642356,-1300.0,0.000174,6]
[394010842,1763178642366,-168.0,0.00017418,2]
[394010843,1763178642376,-1000.0,0.00017421,2]
[394010844,1763178642386,-1006.79679862,0.00017421,2]
[394010845,1763178642395,-510.75841668,0.00017421,2]
[394010846,1763178642404,-150.0,0.00017442,2]
[394010847,1763178642413,-204.13707817,0.00017442,2]
[394010848,1763178642422,-276.87546424,0.00017442,2]
[394010849,1763178642431,-500.0,0.00017442,2]
[394010850,1763178642440,-500.0,0.00017442,2]
[394010851,1763178642449,-500.0,0.00017442,2]
[394010852,1763178642458,-462.0,0.00017442,2]
[394010853,1763178642467,-210.05494419,0.00017442,2]
[394010854,1763178642476,-500.0,0.00017442,2]
[394010855,1763178642490,-500.0,0.00017442,2]
[394010856,1763178642499,-500.0,0.00017442,2]
[394010857,1763178642508,-500.0,0.00017447,2]
[394010858,1763178642518,-586.29055097,0.00017447,2]
[394010859,1763178642529,-4294.83167324,0.00017449,2]
[394010860,1763178642539,-5634.20854295,0.00017453,2]
[394010861,1763178642549,-1000.0,0.00017499,2]
[394010862,1763178642559,-200.0,0.000175,6]
[394010863,1763178642569,-150.0,0.00017503,2]
[394010864,1763178642578,-500.0,0.00017503,2]
[394010865,1763178642768,-150.0,0.00017503,2]
[394010866,1763178642825,-576.63670966,0.00017503,2]
[394010867,1763178642834,-150.0,0.00017503,2]
[394010868,1763178642843,-500.0,0.00017507,2]
[394010869,1763178642852,-168.0,0.0001754,2]
[394010870,1763178642862,-168.0,0.00017548,2]
[394010871,1763178642871,-4294.83167324,0.00017562,2]
[394010872,1763178642880,-5634.20854295,0.00017565,2]
[394010873,1763178642889,-203.43582105,0.00017579,2]
[394010874,1763178642897,-500.0,0.00017579,2]
[394010875,1763178642906,-500.0,0.00017579,2]
[394010876,1763178642915,-500.0,0.00017579,2]
[394010877,1763178642924,-462.0,0.00017579,2]
[394010878,1763178642933,-500.0,0.00017579,2]
[394010879,1763178642942,-500.0,0.00017579,2]
[394010880,1763178642951,-500.0,0.00017579,2]
[394010881,1763178642961,-630.8728788,0.00017584,2]
[394010882,1763178642970,-222.2113773,0.00017596,2]
[394010883,1763178642979,-500.0,0.00017598,2]
[394010884,1763178642987,-520.89136013,0.00017598,2]
[394010885,1763178642997,-500.0,0.00017598,2]
[394010886,1763178643007,-447.31088182,0.00017598,2]
[394010887,1763178643016,-1070.0,0.000176,2]
[394010888,1763178643026,-200.0,0.000176,6]
[394010889,1763178643035,-168.0,0.0001761,2]
[394010890,1763178643044,-160.84846431,0.0001764,2]
[394010891,1763178643053,-500.0,0.0001764,2]
[394010892,1763178643062,-161.17143479,0.0001764,2]
[394010893,1763178643071,-201.08088301,0.0001764,2]
[394010894,1763178643080,-276.0,0.00017643,2]
[394010895,1763178643089,-4294.83167324,0.00017675,2]
[394010896,1763178643098,-5634.20854295,0.00017676,2]
[394010897,1763178643107,-300.0,0.000177,2]
[394010898,1763178643116,-416.5,0.000177,2]
[394010899,1763178643125,-200.0,0.000177,6]
[394010900,1763178643135,-500.0,0.00017716,2]
[394010901,1763178643143,-500.0,0.00017716,2]
[394010902,1763178643152,-500.0,0.00017716,2]
[394010903,1763178643161,-462.0,0.00017716,2]
[394010904,1763178643170,-500.0,0.00017716,2]
[394010905,1763178643181,-500.0,0.00017716,2]
[394010906,1763178643190,-500.0,0.00017716,2]
[394010907,1763178643199,-150.99,0.00017728,2]
[394010908,1763178643208,-9999.99,0.00017728,2]
[394010909,1763178643217,-299.99,0.00017728,4]
[394010910,1763178643227,-14309.41,0.00017728,2]
[394010911,1763178643236,-4284.77,0.00017728,2]
[394010913,1763178643245,-3093.34,0.00017728,2]
[394010915,1763178643257,-276.0,0.00017761,2]
[394010917,1763178643266,-1578.12286332,0.00017763,2]
[394010918,1763178643275,-1242.13437441,0.00017764,4]
[394010919,1763178643284,-195.0,0.00017764,2]
[394010920,1763178643293,-250.0,0.00017764,2]
[394010921,1763178643303,-195.0,0.00017764,2]
[394010922,1763178643312,-250.0,0.00017764,2]
[394010923,1763178643322,-300.0,0.00017764,2]
[394010924,1763178643331,-300.0,0.00017764,2]
[394010925,1763178643340,-300.0,0.00017764,2]
[394010926,1763178643349,-300.0,0.00017764,2]
[394010927,1763178643358,-300.0,0.00017764,2]
[394010928,1763178643367,-5000.0,0.00017764,4]
[394010929,1763178643377,-150.15956751,0.00017764,2]
[394010930,1763178643386,-203.27418758,0.00017764,2]
[394010931,1763178643395,-2559.66805204,0.00017764,2]
[394010932,1763178643404,-3999.0,0.00017771,2]
[394010933,1763178643414,-500.0,0.00017777,2]
[394010934,1763178643423,-4294.83167324,0.00017787,2]
[394010935,1763178643432,-5634.20854295,0.00017788,2]
[394010936,1763178643440,-1000.0,0.000178,2]
[394010937,1763178643450,-200.0,0.000178,6]
[394010938,1763178643459,-500.0,0.00017808,2]
[394010939,1763178643468,-2375.95249,0.0001782,2]
[394010940,1763178643477,-343.66386376,0.0001783,2]
[394010941,1763178643488,-150.0,0.00017846,2]
[394010942,1763178643498,-326.1,0.00017848,2]
[394010943,1763178643508,-500.0,0.00017853,2]
[394010944,1763178643517,-500.0,0.00017853,2]
[394010945,1763178643526,-500.0,0.00017853,2]
[394010946,1763178643536,-462.0,0.00017853,2]
[394010947,1763178643545,-500.0,0.00017853,2]
[394010948,1763178643555,-500.0,0.00017853,2]
[394010949,1763178643567,-500.0,0.00017853,2]
[394010950,1763178643576,-200.0,0.00017855,2]
[394010951,1763178643585,-200.0,0.00017855,2]
[394010952,1763178643593,-200.0,0.00017856,2]
[394010953,1763178643603,-200.0,0.00017856,2]
[394010954,1763178643612,-215.11940772,0.00017898,2]
[394010955,1763178643621,-399.58313709,0.00017899,2]
[394010956,1763178643630,-399.58313707,0.000179,2]
[394010957,1763178643639,-1351.00319326,0.000179,3]
[394010958,1763178643648,-4294.83167324,0.000179,2]
[394010959,1763178643657,-785.0,0.000179,6]
[394010960,1763178643667,-5634.20854295,0.000179,2]
[394010961,1763178643677,-152.10898746,0.000179,3]
[394010962,1763178643686,-12795.09143716,0.000179,2]
[394010963,1763178643696,-500.0,0.00017914,2]
[394010964,1763178643705,-500.0,0.00017945,2]
[394010965,1763178643715,-500.0,0.00017949,2]
[394010966,1763178643725,-412.27450207,0.00017949,2]
[394010967,1763178643734,-276.0,0.00017966,2]
[394010968,1763178643743,-1500.0,0.00017968,2]
[394010969,1763178643754,-500.0,0.00017973,2]
[394010970,1763178643763,-500.0,0.00017973,2]
[394010971,1763178643773,-315.68330027,0.00017973,2]
[394010972,1763178643782,-500.0,0.00017973,2]
[394010973,1763178643791,-500.0,0.00017973,2]
[394010974,1763178643799,-531.46991526,0.00017973,2]
[394010975,1763178643808,-500.0,0.00017973,2]
[394010976,1763178643817,-500.0,0.00017973,2]
[394010977,1763178643826,-468.6903931,0.00017973,2]
[394010978,1763178643835,-500.0,0.00017973,2]
[394010979,1763178643844,-500.0,0.00017973,2]
[394010980,1763178643854,-500.0,0.00017973,2]
[394010982,1763178643863,-500.0,0.00017973,2]
[394010983,1763178643872,-500.0,0.00017973,2]
[394010984,1763178643881,-500.0,0.00017973,2]
[394010985,1763178643890,-500.0,0.00017973,2]
[394010986,1763178643899,-500.0,0.00017973,2]
[394010987,1763178643909,-500.0,0.00017973,2]
[394010988,1763178643918,-500.0,0.00017973,2]
[394010989,1763178643927,-500.0,0.0001799,2]
[394010990,1763178643937,-500.0,0.0001799,2]
[394010991,1763178643946,-500.0,0.0001799,2]
[394010992,1763178643955,-462.0,0.0001799,2]
[394010993,1763178643964,-500.0,0.0001799,2]
[394010994,1763178643973,-394.96359558,0.0001799,2]
[394010996,1763178643982,-313.52986719,0.0001799,2]
[394010998,1763178643991,-510.0,0.0001799,2]
[394011000,1763178644001,-418.12359549,0.00017997,2]
[394011001,1763178644010,-500.0,0.00017997,2]
[394011002,1763178644019,-1470.0,0.00017998,2]
[394011003,1763178644028,-150718.07144873,0.00017998,2]
[394011004,1763178644038,-500.0,0.00017998,2]
[394011005,1763178644047,-366.97143755,0.00017998,2]
[394011006,1763178644056,-2053.4771353,0.00017999,2]
[394011007,1763178644065,-6011.3644562,0.00017999,2]
[394011008,1763178644074,-373.8255042,0.00017999,2]
[394011009,1763178644083,-193530.5376485,0.00017999,2]
[394011010,1763178644092,-500.0,0.00017999,2]
[394011011,1763178644101,-500.0,0.00017999,2]
[394011012,1763178644110,-500.0,0.00017999,2]
[394011013,1763178644119,-500.0,0.00017999,2]
[394011014,1763178644128,-500.0,0.00017999,2]
[394011015,1763178644138,-500.0,0.00017999,2]
[394011016,1763178644147,-519.46587385,0.00017999,2]
[394011017,1763178644155,-500.0,0.00017999,2]
[394011018,1763178644164,-500.0,0.00017999,2]
[394011019,1763178644175,-500.0,0.00017999,2]
[394011020,1763178644185,-508.65953216,0.00017999,2]
[394011021,1763178644194,-8241.2638663,0.00017999,2]
[394011022,1763178644203,-3409240.54082534,0.00018,2]
[394011024,1763178646218,-354.62530039,0.000169,2]
[394011025,1763178646229,-490.95469961,0.000169,2]
[394011026,1763178646238,-150.0,0.00017178,2]
[394011027,1763178646247,-399.58313707,0.000179,2]
[394011028,1763178646256,-13203.09511692,0.00018,2]
[394011029,1763178646278,-500.4799978,0.00018,2]
[394011030,1763178646336,-1389.12448401,0.00018,2]
[394011031,1763178646347,-3209.47777559,0.00018,2]
[394011032,1763178646358,-47226.30824837,0.00018,2]
[394011033,1763178646399,-589.06887537,0.00018,2]
[394011034,1763178646568,-32136.65071485,0.00018,2]
[394011035,1763178646627,-370.66793937,0.00018,2]
[394011036,1763178646638,-3285.4368,0.00018,2]
[394011037,1763178646649,-307.67885851,0.00018,2]
[394011043,1763178721833,300.0,0.000169,6]
[394011044,1763178726172,1242.13437441,0.00016785,4]
[394011045,1763178802197,299.99,0.00016922,4]
[394011046,1763178839270,150.0,0.00016547,120]
[394011049,1763179394732,166.66,0.00015014,2]
[394011050,1763179394931,166.66,0.0001533,2]
[394011051,1763179395182,166.66,0.00015646,2]
[394011052,1763179395381,166.66,0.00015962,2]
[394011053,1763179415299,6.52273535,0.00015247,2]
[394011054,1763179415321,193.47726465,0.00015247,2]
[394011055,1763179629336,200.0,0.000169,6]
[394011056,1763179662539,241.95,0.00015664,2]
[394011057,1763179798416,3564.57273535,0.00015659,2]
[394011058,1763179798438,4000.0,0.00015659,2]
[394011059,1763179798459,4000.0,0.00015659,2]
[394011060,1763179798480,4000.0,0.00015659,2]
[394011061,1763179798500,4000.0,0.00015659,2]
[394011062,1763179798521,4000.0,0.00015659,2]
[394011063,1763179798542,4000.0,0.00015659,2]
[394011064,1763179798564,4000.0,0.00015659,2]
[394011065,1763179798588,2600.0,0.00015659,2]
[394011066,1763179798612,10000.0,0.00015659,2]
[394011073,1763179831458,-1185.77732765,0.00015659,2]
[394011075,1763179831599,-16741.809937,0.00015659,2]
[394011076,1763179831608,-166.66,0.00016278,2]
[394011077,1763179831617,-195.0,0.00016282,2]
[394011078,1763179831626,-195.0,0.00016285,2]
[394011079,1763179831635,-250.0,0.00016291,2]
[394011080,1763179831644,-195.0,0.00016306,2]
[394011081,1763179831654,-250.0,0.00016329,2]
[394011082,1763179831663,-159.4690746,0.00016338,2]
[394011083,1763179831673,-166.7,0.00016379,2]
[394011084,1763179831682,-159.4690746,0.00016418,2]
[394011085,1763179831691,-1797.39,0.00016438,2]
[394011086,1763179831701,-159.4690746,0.00016498,2]
[394011087,1763179831710,-198.10762235,0.000165,2]
[394011088,1763179831720,-161.11,0.00016546,2]
[394011089,1763179831729,-150.0,0.00016547,2]
[394011090,1763179831739,-300.0,0.00016547,2]
[394011091,1763179831748,-272.0,0.00016547,2]
[394011093,1763179831759,-1200.0,0.00016547,2]
[394011094,1763179831768,-550.0,0.00016548,2]
[394011095,1763179831777,-14309.41,0.00016549,2]
[394011096,1763179831787,-453.14,0.00016549,2]
[394011097,1763179831796,-150.99,0.00016549,2]
[394011098,1763179831805,-3093.34,0.00016549,2]
[394011100,1763179831814,-9999.99,0.00016549,2]
[394011102,1763179831824,-4284.77,0.00016549,2]
[394011104,1763179831833,-153.79,0.00016559,2]
[394011106,1763179831843,-215.58724508,0.00016573,2]
[394011107,1763179831852,-500.0,0.00016573,2]
[394011108,1763179831861,-500.0,0.00016573,2]
[394011109,1763179831871,-311.36460741,0.00016573,2]
[394011111,1763179831880,-501.94551867,0.00016573,2]
[394011113,1763179831893,-190.06175728,0.00016573,2]
[394011116,1763179831903,-502.06989655,0.00016573,2]
[394011118,1763179831912,-500.0,0.00016573,2]
[394011119,1763179831921,-501.61257175,0.00016573,2]
[394011120,1763179831930,-293.91,0.00016589,2]
[394011121,1763179831940,-293.91,0.00016589,2]
[394011122,1763179832181,-293.91,0.00016589,2]
[394011123,1763179832191,-5251.00538449,0.00016589,2]
[394011124,1763179832201,-166.66,0.00016595,2]
[394011125,1763179832211,-403.80196782,0.00016598,2]
[394011126,1763179832220,-306.1315043,0.00016598,2]
[394011127,1763179832230,-184.74657092,0.00016598,2]
[394011128,1763179832239,-202.61126637,0.00016598,2]
[394011129,1763179832248,-500.0,0.00016598,2]
[394011130,1763179832257,-500.0,0.00016598,2]
[394011131,1763179832266,-500.0,0.00016598,2]
[394011132,1763179832275,-500.0,0.00016598,2]
[394011133,1763179832284,-500.0,0.00016598,2]
[394011134,1763179832293,-510.63017788,0.00016598,2]
[394011135,1763179832303,-451.28203804,0.00016598,2]
[394011136,1763179832312,-500.0,0.00016598,2]
[394011137,1763179832321,-500.0,0.00016598,2]
[394011138,1763179832331,-500.0,0.00016598,2]
[394011139,1763179832344,-500.0,0.00016598,2]
[394011140,1763179832354,-500.0,0.00016598,2]
[394011141,1763179832363,-301.42889733,0.00016598,2]
[394011142,1763179832372,-500.0,0.00016598,2]
[394011143,1763179832382,-500.0,0.00016598,2]
[394011144,1763179832391,-500.0,0.00016598,2]
[394011145,1763179832400,-500.0,0.00016598,2]
[394011146,1763179832410,-500.0,0.00016598,2]
[394011147,1763179832420,-500.0,0.00016598,2]
[394011148,1763179832429,-178.53767329,0.00016598,2]
[394011149,1763179832439,-500.0,0.00016598,2]
[394011150,1763179832448,-500.0,0.00016598,2]
[394011151,1763179832458,-500.0,0.00016598,2]
[394011152,1763179832467,-500.0,0.00016598,2]
[394011153,1763179832476,-500.0,0.00016598,2]
[394011154,1763179832485,-500.0,0.00016598,2]
[394011155,1763179832495,-500.0,0.00016598,2]
[394011156,1763179832504,-500.0,0.00016598,2]
[394011157,1763179832514,-500.0,0.00016598,2]
[394011158,1763179832524,-500.0,0.00016598,2]
[394011159,1763179832534,-500.0,0.00016598,2]
[394011160,1763179832543,-500.0,0.00016598,2]
[394011161,1763179832552,-500.0,0.00016598,2]
[394011162,1763179832561,-500.0,0.00016598,2]
[394011163,1763179832571,-500.0,0.00016598,2]
[394011164,1763179832580,-500.0,0.00016598,2]
[394011165,1763179832590,-500.0,0.00016598,2]
[394011166,1763179832599,-500.0,0.00016598,2]
[394011167,1763179832609,-500.0,0.00016598,2]
[394011168,1763179832618,-500.0,0.00016598,2]
[394011169,1763179832627,-159.95515493,0.00016598,2]
[394011170,1763179832637,-500.0,0.00016598,2]
[394011171,1763179832646,-500.0,0.00016598,2]
[394011172,1763179832655,-255.71432192,0.00016598,2]
[394011173,1763179832665,-1000.0,0.00016599,2]
[394011174,1763179832674,-356666.80879205,0.00016599,2]
[394011175,1763179832686,-7492.86060795,0.00016599,2]
[394011176,1763179832695,-2333.8611,0.00016689,2]
[394011177,1763179832708,-151.0,0.0001669,2]
[394011178,1763179832718,-151.0,0.0001669,2]
[394011179,1763179832727,-151.0,0.0001669,2]
[394011180,1763179832737,-151.0,0.0001669,2]
[394011181,1763179832748,-151.0,0.0001669,2]
[394011182,1763179832758,-151.0,0.0001669,2]
[394011183,1763179832767,-151.0,0.0001669,2]
[394011184,1763179832776,-151.0,0.0001669,2]
[394011185,1763179832785,-151.0,0.0001669,2]
[394011186,1763179832795,-151.0,0.0001669,2]
[394011187,1763179832804,-151.0,0.0001669,2]
[394011188,1763179832813,-151.0,0.0001669,2]
[394011189,1763179832822,-151.0,0.0001669,2]
[394011190,1763179832832,-151.0,0.0001669,2]
[394011191,1763179832842,-151.0,0.0001669,2]
[394011192,1763179832851,-151.0,0.0001669,2]
[394011193,1763179832861,-151.0,0.0001669,2]
[394011194,1763179832871,-151.0,0.0001669,2]
[394011195,1763179832881,-151.0,0.0001669,2]
[394011196,1763179832893,-151.0,0.0001669,2]
[394011197,1763179832906,-151.0,0.0001669,2]
[394011198,1763179832916,-151.0,0.0001669,2]
[394011199,1763179832926,-151.0,0.0001669,2]
[394011200,1763179832936,-151.0,0.0001669,2]
[394011201,1763179832946,-151.0,0.0001669,2]
[394011202,1763179832956,-151.0,0.0001669,2]
[394011203,1763179832967,-206.35089017,0.0001669,2]
[394011204,1763179832976,-151.0,0.0001669,2]
[394011205,1763179832986,-151.0,0.0001669,2]
[394011206,1763179832996,-151.0,0.0001669,2]
[394011207,1763179833005,-947.5,0.0001669,2]
[394011208,1763179833014,-664.238,0.00016699,2]
[394011209,1763179833024,-473.736,0.00016699,2]
[394011210,1763179833033,-2500.0,0.00016699,2]
[394011211,1763179833043,-170.22219853,0.000167,2]
[394011212,1763179833052,-1368.8089057,0.000167,2]
[394011213,1763179833064,-797.94266017,0.000167,2]
[394011214,1763179833207,-7947.08836183,0.000167,2]
[394011215,1763179833218,-5251.0053844,0.00016735,2]
[394011216,1763179833228,-185.41980406,0.00016772,2]
[394011217,1763179833238,-1329.626,0.00016772,2]
[394011218,1763179833247,-162.2238998,0.00016773,2]
[394011219,1763179833257,-170.54330464,0.00016773,2]
[394011220,1763179833266,-501.97242139,0.00016773,2]
[394011221,1763179833275,-501.00802788,0.00016773,2]
[394011222,1763179833285,-506.88934858,0.00016773,2]
[394011223,1763179833297,-500.0,0.00016773,2]
[394011224,1763179833307,-500.0,0.00016773,2]
[394011225,1763179833316,-500.0,0.00016773,2]
[394011226,1763179833327,-501.38602614,0.00016773,2]
[394011227,1763179833337,-150.0,0.00016789,2]
[394011228,1763179833347,-151.04410562,0.00016789,2]
[394011229,1763179833356,-150.0,0.00016789,2]
[394011230,1763179833365,-150.90639333,0.00016789,2]
[394011231,1763179833375,-150.0,0.00016789,2]
[394011232,1763179833384,-150.0,0.00016789,2]
[394011233,1763179833394,-165.29538188,0.00016789,2]
[394011234,1763179833403,-151.95450501,0.00016789,2]
[394011235,1763179833413,-150.0,0.00016789,2]
[394011236,1763179833425,-150.0,0.00016789,2]
[394011237,1763179833434,-150.0,0.00016789,2]
[394011238,1763179833443,-161.28819689,0.00016789,2]
[394011239,1763179833453,-150.0,0.00016789,2]
[394011240,1763179833462,-500.0,0.00016789,2]
[394011241,1763179833471,-150.0,0.00016789,2]
[394011242,1763179833481,-150.0,0.00016789,2]
[394011243,1763179833490,-500.0,0.00016789,2]
[394011244,1763179833502,-150.0,0.00016789,2]
[394011245,1763179833511,-150.0,0.00016789,2]
[394011246,1763179833521,-714.0,0.00016789,2]
[394011247,1763179833531,-500.0,0.00016789,2]
[394011248,1763179833540,-150.0,0.00016789,2]
[394011249,1763179833550,-150.0,0.00016789,2]
[394011250,1763179833559,-150.0,0.00016789,2]
[394011251,1763179833569,-450.0,0.00016789,2]
[394011252,1763179833584,-150.0,0.00016789,2]
[394011253,1763179833597,-150.0,0.00016789,2]
[394011254,1763179833606,-500.0,0.00016789,2]
[394011255,1763179833616,-500.0,0.00016789,2]
[394011256,1763179833625,-500.0,0.00016798,2]
[394011257,1763179833635,-500.0,0.00016798,2]
[394011258,1763179833645,-500.0,0.00016798,2]
[394011259,1763179833654,-14134.0645183,0.00016798,2]
[394011260,1763179833664,-519.40506506,0.00016798,2]
[394011261,1763179833674,-500.0,0.00016798,2]
[394011262,1763179833683,-546.76293159,0.00016798,2]
[394011263,1763179833693,-500.0,0.00016798,2]
[394011264,1763179833702,-500.0,0.00016798,2]
[394011265,1763179833712,-500.0,0.00016798,2]
[394011266,1763179833721,-246.62811958,0.00016798,2]
[394011267,1763179833731,-500.0,0.00016798,2]
[394011268,1763179833740,-500.0,0.00016798,2]
[394011269,1763179833750,-500.0,0.00016798,2]
[394011270,1763179833759,-632.41209536,0.00016798,2]
[394011271,1763179833769,-500.0,0.00016798,2]
[394011272,1763179833778,-500.0,0.00016798,2]
[394011273,1763179833788,-500.0,0.00016798,2]
[394011274,1763179833798,-500.0,0.00016798,2]
[394011275,1763179833808,-500.0,0.00016798,2]
[394011276,1763179833817,-500.0,0.00016798,2]
[394011277,1763179833828,-500.0,0.00016798,2]
[394011278,1763179833837,-500.0,0.00016798,2]
[394011279,1763179833847,-500.0,0.00016798,2]
[394011280,1763179833856,-1000.0,0.000168,2]
[394011281,1763179833866,-293.91,0.00016823,2]
[394011282,1763179833876,-10113.83992768,0.00016833,2]